Workbook

Sheet Schedule 1 - P&Gs
B1: SCHEDULE 1 : PRELIMINARY AND GENERAL
B2: ITEM | C2: REF | D2: DESCRIPTION | E2: UNIT | F2: QUANT | G2: RATE | H2: AMOUNT
B3: NO.
C4: SABS | D4: SCHEDULE 1 : PRELIMINARY AND GENERAL
C5: 1200A
B6: 1.1 | C6: 8.3 | D6: FIXED CHARGE AND VALUE RELATED ITEMS
B7: 1.1.1 | C7: PSA 4.1 | D7: Contractual Requirements | E7: Sum | F7: 1
B9: 1.1.2 | C9: 8.3.2 | D9: Establish facilities on the site
B10: 1.1.2.1 | C10: 8.3.2.1 | D10: i) Facilities for Engineer
D11: a) Engineer's office (PSA 4.3.1) | E11: Sum | F11: 1
D13: b) Name board (PSA 4.3.2) | E13: No | F13: 2
D15: c) Survey assistants and material | E15: Sum | F15: 1
B17: 1.1.2.2 | C17: 8.3.2.2 | D17: ii) Facilities for Contractor
D18: a) Offices and storage sheds | E18: Sum | F18: 1
D20: b) Workshops | E20: Sum | F20: 1
D22: c) Laboratories | E22: Sum | F22: 1
D24: d) Living accommodation | E24: Sum | F24: 1
D26: e) Ablution and latrine facilities | E26: Sum | F26: 1
D28: f) Tools and equipment | E28: Sum | F28: 1
D30: g) Water supplies, electric power
D31: & communications | E31: Sum | F31: 1
D33: h) Dealing with water | E33: Sum | F33: 1
D35: i) Access | E35: Sum | F35: 1
D37: j) Plant | E37: Sum | F37: 1
B39: 1.1.3 | C39: 8.3.3 | D39: Other fixed charge obligations | E39: Sum | F39: 1
B41: 1.1.4 | C41: 8.3.4 | D41: Removal of Engineer's and Contractor's site
D42: establishment from site on completion of works. | E42: Sum | F42: 1
C44: SABS
C45: 1200A
B46: 1.2 | C46: 8.4 | D46: TIME RELATED ITEMS
B47: 1.2.1 | C47: PSA 4.2 | D47: Contractual requirements | E47: month | F47: 15
B49: 1.2.2 | C49: 8.4.2 | D49: Operations and maintenance of facilities on site
B50: 1.2.2.1 | C50: 8.4.2.1 | D50: Facilities for Engineer for duration of construction (SANS 1200 AB)
D51: a) Engineer's office | E51: Month | F51: 15
D53: b) Name board | E53: Month | F53: 15
D55: c) Survey assistants and material | E55: Month | F55: 15
B57: 1.2.3 | C57: 8.4.2 | D57: Operations and maintenance of facilities on site
B58: 1.2.3.1 | C58: 8.4.2.2 | D58: Facilities for the Contractor for the duration of the Contract, except where otherwise stated
D60: a) Offices and storage sheds | E60: Month | F60: 15
B62: AMOUNT CARRIED FORWARD
B63: AMOOUNT BROUGHT FORWARD
D65: b) Workshops | E65: Month | F65: 15
D67: c) Laboratories | E67: Month | F67: 15
D69: d) Ablution and latrine facilities | E69: Month | F69: 15
D71: e) Tools and equipment | E71: Month | F71: 15
D73: f) Water supplies, electric power & communications | E73: Month | F73: 15
D75: g) Dealing with water | E75: Month | F75: 15
D77: h) Access | E77: Month | F77: 15
D79: i) Plant | E79: Month | F79: 15
B81: 1.2.4 | C81: 8.4.3 | D81: Supervision for duration of the construction | E81: Month | F81: 15
B83: 1.2.5 | C83: 8.4.4 | D83: Company and Head Office overhead costs for the duration of the Contract | E83: Month | F83: 15
B85: 1.2.6 | C85: 8.4.5 | D85: Other time related obligations | E85: Month | F85: 15
B87: 1.2.7 | C87: PSA | D87: Excavation by hand in all materials to expose existing services
C88: 4.4 | E88: m³ | F88: 150
B90: 1.3 | C90: PSA | D90: Occupational Health and Safety
C91: 4.5 | D91: Provision for the cost related to the Occupational Health
D92: and Safety Act, 85 of 1993, and the relevant Regulations:
D93: a) Preparation of a Health & safety Plan | E93: Sum | F93: 1
D95: b) Compilation of a Risk Assessment prior to Construction | E95: Sum | F95: 1
D97: c) Health & Safety induction Training of employees | E97: Sum | F97: 1
D99: d) Compilation and keeping up to date the Health &
D100: Safety file which shall include all documentation
D101: required in terms of the act | E101: Sum | F101: 1
D103: e) Implementation of the Health and Safety Plan over the
D104: entire construction period | E104: Sum | F104: 1
C106: PSA
B107: 1.4 | C107: 1.4 | D107: SUMS STATED PROVISIONALLY BY THE ENGINEER
C108: 1.4.1 | D108: a) Community Liaison Officer | E108: Prov. Sum | F108: 1 | G108: =8000*15 -> 120,000.00 | H108: =8000*15 -> R 120,000.00
D109: ( Allowance for one person at R8000 a month)
C111: 1.4.2 | D111: b) Underground water services survey and logging using GSM loggers | E111: Prov. Sum | F111: 1 | G111: 150,000.00 | H111: R 150,000.00
D112: loggers
D114: Extra-over item 1.4.1 to 1.4.6 for:
D115: Contractor's handling fee | E115: % | F115: =SUM(H108:H112) -> R 270,000.00
B117: 1.5 | D117: MATERIAL
D118: Actual cost of materials delivered to site inclusive of transport charges. (supporting invoices to be supplied) | E118: Prov. Sum | F118: 1 | G118: 100,000.00 | H118: =G118*F118 -> R 100,000.00
D120: Percentage adjustment to item 1.5.1 for materials | E120: % | F120: =H118 -> R 100,000.00
B122: AMOUNT CARRIED FORWARD
B123: AMOOUNT BROUGHT FORWARD
B124: 1.6 | D124: QUALIFIED CIVIL ENGINEERING TECHNICIAN
D126: Allowance for payment of a Qualified Civil Engineering technician | E126: Prov. Sum | F126: 1 | G126: 120,000.00 | H126: =G126*F126 -> R 120,000.00
D128: Contractor's markup to item 1.10.1 | E128: % | F128: =H126 -> R 120,000.00
B130: 1.7 | D130: TRAINING
D132: Allowance for training | E132: Prov. Sum | F132: 1 | G132: 250,000.00 | H132: =G132*F132 -> R 250,000.00
D134: Contractor's markup to item 1.10.1 | E134: % | F134: =H132 -> R 250,000.00
B137: 1.8 | D137: PLANT
D139: a) Compressor
B141: 1.8.1 | D141: With 2 Breakers and 2 Operators | E141: day | F141: 20 | M141: =SUM(H141:H155) -> R 0.00
B143: 1.8.2 | D143: Establishment / Destablishment for item 1.8.1 | E143: No | F143: 2
B145: 1.8.3 | D145: b) TLB | E145: hr | F145: 20
B147: 1.8.4 | D147: Establishment / Destablishment for item 1.8.3 | E147: No | F147: 2
B149: 1.8.5 | D149: c) 10kl Water Tanker | E149: hr | F149: 100
B151: 1.8.6 | D151: Establishment / Destablishment for item 1.8.5 | E151: No | F151: 2
B153: 1.8.7 | D153: c) Wacker | E153: day | F153: 10
B155: 1.8.8 | D155: d) Water Pump | E155: day | F155: 10
B157: 1.9 | D157: SURVEY
B159: 1.9.1 | D159: Allowance for any As-Built" survey" | E159: Prov. Sum | F159: 1 | G159: R 80,000.00 | H159: =F159*G159 -> R 80,000.00
B161: 1.9.2 | D161: Contractor's markup to item 1.9.1 | E161: % | F161: =H159 -> R 80,000.00
B170: TOTAL SCHEDULE 1 CARRIED FORWARD TO SUMMARY
M177: =SUM(M2:M172) -> 0

Sheet Schedule 2 -Masibekela RWPS&WTW
B1: SCHEDULE 2 : MASIBEKELA RAW WATER PUMP STATION AND WATER TREATMENT WORKS
B2: ITEM | C2: REF | D2: DESCRIPTION | F2: UNIT | G2: QUANT | H2: RATE | I2: AMOUNT
B3: NO.
B4: 2 | C4: SANS 1200 | E4: MASIBEKELA RWPS AND WTW
B5: 2.1 | E5: Raw Water Pump Station
B6: 2.1 | E6: Refurbishment of KSB ETANORM centrifugal pump
E7: set. | F7: No. | G7: 2.00
B9: 2.2 | E9: Refurbishment of MCC units | F9: Sum | G9: 1.00
B11: 2.3 | E11: Removal of the suction pipes 500mmØ for cleaning | F11: Sum | G11: 1.00
B13: 2.4 | E13: Fabrication of galvanized suction pipe inlet screen
E14: and installation | F14: Sum | G14: 1.00
B16: 2 | E16: Water Treatment Works
B17: 2.1 | E17: Removal of dislodging DN300 PN10 butterfly valves
E18: on sedimentation tank and replacement with new | F18: No. | G18: 1.00
B20: 2.2 | E20: Removal of D300 PN10 Okzan butterfly valves
E21: complete with gearbox and replace from sand filters
E22: and replacement with new | F22: No. | G22: 8.00
B24: 2.3 | E24: Removal of DN150 PN gate valve from sand filters
E25: and replacement with new | F25: No. | G25: 3.00
B27: 2.4 | E27: Removal of sand media from filters and disposal
E28: at a dedicated dump site | F28: m³ | G28: 100.00
B30: 2.5 | E30: Supply, delivery and application of silica sand media | F30: m³ | G30: 100.00
B32: 2.6 | E32: Supply, delivery, installation and commissioning of
E33: booster pump set with capacity of 171m³/h and
E34: duty head of 92.94m
E35: (The rate to include removal of existing pump sets, pipework and
E36: storage onsite) | F36: Set | G36: 2.00
B38: 2.7 | E38: Installation of pre-chlronation system at the inlet (System to include pipework, provision of cage to chlorine cylinders dosing 2 dosing pumps) | F38: Sum | G38: 1.00
B40: 2.8 | E40: Supply, delivery and installation of 250mmØ ultrasonic
E41: flow meter | F41: No | G41: 1.00
B43: 2.9 | E43: Upgrading of existing soft starter MCC panel to suit
E44: the new pump set | F44: No | G44: 2.00 | K44: 450000 | L44: =G44*K44 -> 900,000.00 | M44: =L44-I44 -> 900,000.00
B46: 2.10 | E46: Truckfilling Station and Guardhouse
C47: SABS
C48: 1200 D | D48: SITE PREPARATION
D49: Site Clearance
C50: 8.3.1.1 | D50: Clear and strip site
B51: 2.10.1 | D51: i) | E51: All structures | F51: m² | G51: 150.00
D53: Remove topsoil
C54: 8.3.1.2 | D54: Remove topsoil to a nominal depth of 150mm
D55: stockpile and maintain
B56: 2.10.2 | D56: i) | E56: All structures | F56: m² | G56: 100.00
B58: AMOUNT CARRIED FORWARD
B59: AMOOUNT BROUGHT FORWARD
D60: RESTRICTED EXCAVATION
C61: 8.3.3 a) | D61: Excavate for restricted foundations, footings and pipe
C62: PSD 2.1 | D62: trenches in all materials and backfill to 95% Mod
D63: AASHTO density:
B64: 2.10.3 | D64: iii) | E64: Guardhouse | F64: m³ | G64: 10.00
C66: 8.3.3 a) | D66: Excavate for restricted foundations, footings and pipe
C67: PSD 2.1 | D67: trenches in all materials and dispose:
B68: 2.10.4 | D68: iii) | E68: Truckfilling station | F68: m³ | G68: 20.00
C70: 8.3.3 b) | D70: Extra-over items 2.10.3 to 2.10.4 for excavation in:
B71: 2.10.5 | D71: a) Intermediate excavation (Provisional) | F71: m³ | G71: =(G64+G68)*0.4 -> 12.00
B73: 2.10.5 | D73: b) Hard rock excavation (Provisional) | F73: m³ | G73: =(G71+G64)*0.2 -> 4.40
C75: 8.3.4 a) | D75: Importing of materials
B76: 2.10.7 | D76: i) | E76: Extra-over for importation of materials from | F76: m³ | G76: 50.00
E77: borrow pit for foundation filling and under truckfilling point slab
E78: Material to have a minimum quality of G6
C79: SABS
C80: 1200G | D80: CONCRETE WORK
D81: Concrete
C82: 8.4.2 | D82: Blinding layer in class 15MPa/19mm to a minimum
D83: thickness of 50mm underneath structures
B84: 2.10.8 | D84: i) | E84: Guard house | F84: m² | G84: 15.00
D86: ii) | E86: Truckfilling point | F86: m² | G86: 40.00
C88: 8.4.3 | D88: Strength concrete - class 25MPa/19mm
B90: 2.10.9 | D90: iii) | E90: Guardhouse footings | F90: m³ | G90: 4.00
C92: 8.4.3 | D92: Strength concrete - Class 25 MPa/19mm
B93: 2.10.10 | D93: i) | E93: All structures (provisional) | F93: m³ | G93: 18.00
C95: 8.4.3 | D95: Strength concrete - class 15MPa/10mm Mass
D96: concrete to:
B97: 2.10.11 | D97: i) | E97: All structures (provisional) | F97: m³ | G97: 2.00
C99: 8.4.3 | D99: Screed to:
B100: 2.10.12 | D100: i) | E100: All structures | F100: m³ | I100: Rate only
C101: SABS
C102: 1200G | D102: CONCRETE: Formwork
C103: 8.2.2 | D103: Formwork - Smooth:
D104: a) | E104: Vertical plane
B106: 2.10.13 | D106: iii) | E106: Pump Station | F106: m² | G106: 23.00
D108: c) | E108: Inclined
B109: 2.10.14 | D109: i) | E109: Staircase | F109: m² | I109: Rate Only
D111: d) | E111: Horizontal plane
B113: 2.10.15 | D113: iii) | E113: Guardhouse coverslabs and roof | F113: m² | G113: 5.00
C115: 8.2.5 | D115: d) | E115: Narrow widths (up to 300mm wide) to:
B116: 2.10.16 | D116: ii) | E116: Guardhouse | F116: m | I116: Rate Only
B118: AMOUNT CARRIED FORWARD
B119: AMOOUNT BROUGHT FORWARD
C120: 8.2.5 | D120: e) | E120: Curved narrow widths (up to 300mm wide) to:
B121: 2.10.17 | D121: i) | E121: Guardhouse | F121: m | I121: Rate Only
D123: REINFORCEMENT
C124: 8.3.1 | D124: Reinforcement, high tensile steel
B125: 2.10.18 | D125: iii) | E125: Guardhouse and truckfilling point | F125: t | G125: 4.50
C127: 8.3.1 | D127: Reinforcement, mild steel
B128: 2.10.19 | D128: iii) | E128: Guardhouse and truckfilling point | F128: t | G128: 1.50
C130: 8.3.2 | D130: High tensile welded mesh - Ref No 295 (Provisional)
B131: 2.10.20 | D131: i) | E131: v-drains and aprons | F131: m² | G131: 45.00
C133: 8.4.4 | D133: Unformed surface finish
B134: 2.10.21 | D134: iii) | E134: Guardhouse, v-drains, and truckfilling point slab | F134: m² | G134: 110.00
C136: PART | D136: PARTICULAR SPECIFICATION
C137: SPEC PB | D137: BUILDING WORK
C138: PB9 | D138: Brickwork
C139: PB9.1.1 | D139: Walls (including brickforcing every fourth course)
B141: 2.10.22 | D141: a) | E141: One brick walls (230 mm wide) | F141: m² | G141: 65.00
E142: Face bricks Type FBS external with 6 mm half
E143: round ruled joints and type NFP internal, the
E144: latter with joints raked for cement plaster
B146: 2.10.23 | D146: b) | E146: Half brick walls (115 mm wide) | F146: m² | G146: 20.00
E147: NFP bricks with joints raked for cement plaster
E148: both sides
B150: 2.10.24 | D150: Damp Proofing
D151: a) | E151: Single layer 375 micron "Gundle Brickgrip" plastic | F151: m | G151: 60.00
E152: waterproof sheeting under all walls at top of floor
E153: level, and underneath window cills:
C155: PB9.1.3 | D155: Windows
B156: 2.10.25 | D156: a) | E156: Standard aluminium windowPT69 at guard house | F156: no | I156: Rate Only
B158: 2.10.26 | D158: b) | E158: Standard aluminium windowPT99 at guard house | F158: no | G158: 1.00
B160: 2.10.27 | D160: c) | E160: Standard aluminium window PT129 at guard house | F160: no | G160: 1.00
B162: 2.10.28 | D162: d) | E162: Standard aluminium window PT159 at guard house | F162: no | G162: 4.00
B164: 2.10.29 | D164: e) | E164: Standard aluminium window PT219 at guard house | F164: no | I164: Rate only
C166: PB9.1.3 | D166: Doors and Frames
B167: 2.10.30 | D167: a) | E167: Standard double sided FL&B 815x2 032mm solid meranti door and | F167: no | G167: 3.00
E168: frame, 3 lever lockset, chrome plated handles and painted
D169: Roof and celing
D170: 0.6mm IBR Chromadek roof sheeting on wooden rafters and fixed to wooden purlins.
B171: 2.10.31 | D171: a) | E171: Chromadek IBR Roof Sheeting | F171: m² | G171: 38.00
B173: 2.10.32 | D173: b) | E173: Roof trussees | F173: Sum | G173: 1.00
B175: 2.10.33 | D175: c) | E175: Ceiling | F175: m² | G175: 20.00
B177: AMOUNT CARRIED FORWARD
B178: AMOOUNT BROUGHT FORWARD
C179: PB9.1.2 | D179: Plaster
B180: 2.10.34 | D180: a) | E180: One layer cement plaster rendered 12 mm thick | F180: m² | G180: 89.00
E181: and finished smooth with steel trowel
C183: PB9.1.2 | D183: Painting wall finishes
B184: 2.10.35 | D184: a) | E184: One coat universal undercoat, Type 1 to SABS 681 | F184: m² | G184: 89.00
B186: 2.10.36 | D186: b) | E186: Two coats of Plascon Double Velvet (Camel Hair) | F186: m² | G186: 89.00
D189: Waterproofing of pump station roof
B190: 2.10.39 | D190: "Acrylastic" as supplied by "Gundle" coatings, supplied | F190: m² | I190: Rate only
D191: and applied to manufacturer's specifications
B193: 2.10.40 | D193: Plumbing works (guardhouse) | F193: Sum | G193: 1.00
B195: 2.10.41 | D195: Electrifical works (guardhouse) | F195: Sum | G195: 1.00
B197: 2.10.42 | D197: Septic Tank as per drawing STD-SEPT/01 | F197: Sum | G197: 1.00
B199: 2.10.43 | D199: DN100 smart-token-meter for truckfilling point
D200: Rate to include modification of pipework,connection and commissioning | F200: Sum | G200: 1.00
B202: 2.10.44 | D202: Fencing of truckfilling point
D204: i) | E204: Deliver and erect 1.8m high 50x50x2.5mm weldedmesh fence
E205: complete as per drawing DET/TFP-01 | F205: m | G205: 50.00
D207: ii) | E207: Gate - 5m double swing gate as per drawing DET/TFP-01 | F207: No | G207: 2.00
B210: TOTAL SCHEDULE 2 CARRIED FORWARD TO SUMMARY

Sheet Schedule 3 - Hoyi Bulk Line
B1: SCHEDULE 3 : HOYI BULKLINE
B2: ITEM | C2: REF | D2: DESCRIPTION | E2: UNIT | F2: QUANT | G2: RATE | H2: AMOUNT
B3: NO.
B4: 3.1 | C4: SANS 1200DB | D4: SITE CLEARANCE
B5: 1.1 | C5: 8.3.1 LI | D5: a) Clear vegetation and tress of girth up to 1 m, stockpile and reinstate topsoil (150mm deep) along route of pipeline | E5: m | F5: 2,350.00
B7: 1.2 | C7: 8.3.1 LI | D7: b) Clear trees of girth over 1,0m and designated obstacles | E7: No. | F7: 4.00
B8: 3.2 | C8: SANS 1200DB | D8: Earthworks: Pipe Trenches
C9: 8.3.2 | D9: EXCAVATION
B10: 3.2.1 | C10: 8.3.2 a) | D10: a) Excavate in all materials for trenches for 315ND pipes and smaller. Rates to include backfill, compact, and dispose of surplus material
D11: Over Up to and including
B13: 3.2.1.1 | D13: 1) 0,00 1,50m | E13: m | F13: 352.50
B15: 3.2.1.2 | D15: 2) 1,50 2,00m | E15: m | F15: 822.50
B17: 3.2.1.3 | D17: 3) 2,00 2,50m | E17: m | F17: 1,175.00
B19: 3.2.1.4 | D19: 4) 2,50 3,00m | E19: m | F19: 500.00
B21: 3.2.2 | C21: 8.3.2 | D21: b) Extra over Item 2.2.1 above for:
B23: 3.2.2.1 | D23: 1) Intermediate excavation | E23: m3 | F23: =587.5+1500 -> 2,087.50
B25: 3.2.2.2 | D25: 2) Hard rock excavation | E25: m3 | F25: =587.5+1000 -> 1,587.50
B27: 3.2.3 | C27: 8.3.2 | D27: c) Excavate and dispose of unsuitable material from trench bottom (Prov) | E27: m3 | F27: 95.00
B29: 3.2.4 | C29: 8.3.3 | D29: Excavation ancillaries (Prov)
B31: 3.2.4.1 | C31: 8.3.3.1 | D31: Make up deficiency in backfill material
D33: a) From other necessary excavations on site | E33: m³ | F33: 125.00
D35: b) by importation from designated borrow pits | E35: m³ | F35: =F25 -> 1,587.50
D37: c) by importation from commercial or off-site sources selected by the contractor | E37: m³ | F37: =130+800 -> 930.00
B39: 3.3 | C39: SANS 1200LB | D39: BEDDING
B40: 3.1 | C40: 8.2.1 | D40: Provision of bedding from trench excavation:
B42: 3.1.1 | D42: a) Selected granular material | E42: m3 | F42: 150.00
B44: 3.1.2 | D44: b) Selected fill material | E44: m3 | F44: 500.00
B46: 3.2 | C46: 8.2.2.2 | D46: Provision from approved borrow pits including all costs for additional handling and transport.
B48: 3.2.1 | D48: a) Selected granular material (Prov) | E48: m3 | F48: 85.00
B50: 3.2.2 | D50: b) Selected fill material (Prov) | E50: m3 | F50: 200.00
B52: 3.3 | C52: 8.2.2.3 | D52: Provision from commercial or off-site sources, where ordered by the Engineer (Prov)
B53: AMOUNT CARRIED FORWARD
B54: AMOUNT BROUGHT FORWARD
B55: 3.3.1 | D55: a) Selected granular material | E55: m3 | F55: 50.00
B57: 3.3.2 | D57: b) Selected fill material | E57: m3 | F57: 150.00
B59: 3.3.3 | D59: c) 19mm crushed stone | E59: m3 | F59: =100+200 -> 300.00
B61: 3.4 | C61: SANS 1200DB 8.3.3.4 | D61: Overhaul
B62: 3.4.1 | D62: a) Short haul over 0,5km up to 1,0km (Prov.) | E62: m3 | F62: =F55+F48+F42 -> 285.00
B64: 3.4.2 | D64: b) Truck haul over 1,0km (Prov.) | E64: m3.km | F64: =(F25+F35+F48+F50)*6 -> 20,760.00
B66: 3.5 | C66: SANS 1200L | D66: Medium Pressure Pipelines
D67: uPVC PIPES
B68: 3.5.1 | C68: 8.2.1 LI | D68: Supply, handle, lay, bed, joint, test and disinfect uPVC Class "12" pipe with spigot and socket ends to SABS 966, Part 2 (1988)
D70: a) 315mmØ class 16 (u-PVC) | E70: m | F70: 2,300.00
B72: 3.5.2 | C72: 8.2.2 | D72: Extra over Item D4.1 for the Supplying, Laying, and Bedding of Specials Complete with Couplings including jointing, cutting of pipes to length where required, testing and disinfecting.
B74: 3.5.2.1 | D74: Specials and Fittings in uPVC
B76: 3.5.2.1.1 | D76: Bends:
D78: a) 45° | E78: No | F78: 2.00
D80: b) 22.5° | E80: No | F80: 4.00
D82: c) 11.25° | E82: No | F82: 4.00
D84: Specials and Fittings in SG Iron
B86: 3.5.2.1.2 | D86: Reducers (for uPVC pipe)
D88: a) 315 - 250mmØ | E88: No | F88: 2.00
D90: b) 200 - 160mmØ | E90: No | F90: 1.00
B92: 3.5.2.1.3 | D92: Equal Tees (Cast iron)
D94: a) 315mmØ | E94: No | F94: 1.00
B96: 3.5.2.1.4 | D96: Reducing Tees (for uPVC pipe)
D98: a) 315 x 200mm diameter | E98: No | F98: 1.00
B100: 3.5.2.1.5 | D100: Flange Adaptor (for uPVC pipes)
D102: a) 315mm diameter | E102: No | F102: 8.00
D104: b) 250mm diameter | E104: No | F104: 8.00
B106: AMOUNT CARRIED FORWARD
B107: AMOUNT BROUGHT FORWARD
B108: 3.5.2.1.6 | D108: Valves
D109: PN16 300 mm ND flanged resilient seal gate valve (Drawing No. CON/DET-01) | E109: No | F109: 3.00
D111: Valve key for opening isolating valves | E111: No | F111: 1.00
D113: Supply and install the following material complete as per drawing:
D114: a) 80mm Airvalve on 315mm diameter | E114: No | F114: 3.00
D116: Valve Chambers
D117: Supply all material labour and equipment for the construction
D118: of valve chambers as per drawings:
D119: Valve chamber | E119: No | F119: 3.00
D121: Connection chamber | E121: No | F121: 3.00
C123: SANS 1200L 8.2.11 | D123: Construct anchor/thrust blocks to detail on D for tees, 90° bends and end caps:
D124: a) 315mmØ | E124: No | F124: 10.00
D126: b) 250mmØ | E126: No | F126: 4.00
B128: 3.6 | D128: HORIZONTAL DIRECTIONAL DRILLING
D129: Horizontal directional drilling underneath a road to
D130: accommodate 300mmØ Steel pipe 18m long ((SABS 719,
D131: Grade B, 4,5 mm wall thickness), both end flanged, internally
D132: lined and externally coated with carboline 891, minimum
D133: thickness 250 microns as per drawing (HDD/01)
D135: a) Railway Crossing | E135: Sum | F135: 1.00
D137: b) Road D2953 | E137: Sum | F137: 1.00
B139: 3.7 | D139: ROAD D2953 CROSSING
D140: Clearance, earthworks, beddings and medium pressure pipes are
D141: covered under item no. 3.1, 3,2, 3,3 3.4.and 3.5
D142: a) Traffic accomodation | E142: Sum | F142: 1.00
D144: b) Reinstatement of the road pavement structure:
D146: i) 150mm G7 Lower selected layer,93% ModAASHTO | E146: m³ | F146: 0 | H146: Rate only
D148: ii) 150mm G6 Upper selected layer, 95% ModAASHTO | E148: m³ | F148: 0 | H148: Rate only
D150: iii) 150mm C4 Subbase layer, 98% ModAASHTO | E150: m³ | F150: 0 | H150: Rate only
D152: iv) 150mm G2 base layer | E152: m³ | F152: 0 | H152: Rate only
D154: v) 30mm Medium Continoiusly Graded Asphalt including
D155: prime @ 1l/m² | E155: m² | F155: 0 | H155: Rate only
B157: AMOUNT CARRIED FORWARD
B158: AMOUNT BROUGHT FORWARD
B160: 3.8 | D160: PN16 200 mm ND flanged electromagentic flow meter
D161: (Proline Promag 50P, 53P compact or approved
D162: similar) (Item No. 7 on Drawing no. CON/DET-01 ) | E162: No | F162: 1.00
D164: Pipe marker posts as shown on Drawing No. STD/PLM01 | E164: No | F164: 8.00
B166: 3.9 | D166: Removal of unathorized connections on the existing DN315 uPVC
D167: pipeline and repairs as and when required (ordered by the Engineer) | E167: Prov. Sum | F167: 1.00 | G167: 350,000.00 | H167: =G167*F167 -> R350,000.00
B169: 3.10 | D169: Sealing of 2Ml concrete reservoir (Hoyi Reservoir) by specialist | E169: Prov. Sum | F169: 1.00 | G169: 250,000.00 | H169: =G169*F169 -> R250,000.00
B171: 3.11 | D171: Sealing of 2Ml concrete reservoir (KaMandulo Reservoir) by specialist | E171: Prov. Sum | F171: 1.00 | G171: 250,000.00 | H171: =G171*F171 -> R250,000.00
B173: 3.12 | D173: Contractor's markup to item 3.9 and 3.10 | E173: % | F173: =H169+H171 -> 500,000.00
B184: TOTAL SCHEDULE 3 CARRIED FORWARD TO SUMMARY

Sheet Schedule 4 - Mbangwane BPS
B1: SCHEDULE 4 : MBANGWANE BOOSTER PUMP STTION
B2: ITEM | C2: REF | D2: DESCRIPTION | F2: UNIT | G2: QUANT | H2: RATE | I2: AMOUNT
B3: NO.
C4: SANS
B5: 4.1 | C5: 1200 D | D5: SITE PREPARATION
D6: Site Clearance
B7: 4.1.1 | C7: 8.3.1.1 | D7: Clear and strip site
D8: i) | E8: All structures | F8: m² | G8: 40.00
D10: Remove topsoil
B11: 4.1.2 | C11: 8.3.1.2 | D11: Remove topsoil to a nominal depth of 150mm
D12: stockpile and maintain
D13: i) | E13: All structures | F13: m² | G13: 40.00
D15: RESTRICTED EXCAVATION
B16: 4.1.3 | C16: 8.3.3 a) | D16: Excavate for restricted foundations, footings and pipe
C17: PSD 2.1 | D17: trenches in all materials and backfill to 95% Mod
D18: AASHTO density:
D20: i) | E20: Pump Station | F20: m³ | G20: 7.35
B22: 4.1.4 | C22: 8.3.3 a) | D22: Excavate for restricted foundations, footings and pipe
C23: PSD 2.1 | D23: trenches in all materials and dispose:
D25: i) | E25: Pump Station | F25: m³ | G25: 20.00 | N25: 1900
B27: 4.1.5 | C27: 8.3.3 b) | D27: Extra-over items 2.3.1 to 2.3.2 for excavation in:
D28: a) Intermediate excavation (Provisional) | F28: m³ | G28: 3.70
D30: b) Hard rock excavation (Provisional) | F30: m³ | G30: 3.70
B32: 4.1.6 | C32: 8.3.4 a) | D32: Importing of materials
D33: i) | E33: Extra-over for importation of materials from | F33: m³ | G33: 13.30
E34: commercial sources for reservoir terrace.
E35: Material to have a minimum quality of G5.
C37: SANS
B38: 4.1.7 | C38: 1200G | D38: CONCRETE WORK
D39: Concrete
C40: 8.4.2 | D40: Blinding layer in class 15MPa/19mm to a minimum
D41: thickness of 50mm underneath structures
D43: i) | E43: Pump Station | F43: m² | G43: 56.00
B46: 4.1.8 | C46: 8.4.3 | D46: Strength concrete - class 35MPa/19mm
D48: iii) | E48: Pump Station | F48: m³ | G48: 8.50
B50: 4.1.9 | C50: 8.4.3 | D50: Strength concrete - Class 25 MPa/19mm
D51: i) | E51: All structures (provisional) | F51: m³ | G51: =2.5+1.1+3.5 -> 7.10
B53: 4.1.10 | C53: 8.4.3 | D53: Strength concrete - class 15MPa/10mm Mass
D54: concrete to:
D55: i) | E55: All structures (provisional) | F55: m³ | G55: 2.00
B57: 4.1.11 | C57: 8.4.3 | D57: Screed to:
D58: i) | E58: All structures | F58: m³ | G58: 3.00
B60: AMOUNT CARRIED FORWARD
B61: AMOOUNT BROUGHT FORWARD
C63: SABS
C64: 1200G | D64: CONCRETE: Formwork
C65: 8.2.2 | D65: Formwork - Smooth:
B66: 4.1.12 | D66: a) | E66: Vertical plane
D68: i) | E68: Pump Station | F68: m² | G68: 7.00
B70: 4.1.13 | D70: b) | E70: Inclined - to staircases
D71: i) | E71: Pump Station staircase | F71: m² | I71: Rate Only
B73: 4.1.14 | D73: d) | E73: Horizontal plane - elevated to walkways and slabs
D75: iii) | E75: Pump Station walkway and roof | F75: m² | G75: 32.00
B77: 4.1.15 | C77: 8.2.5 | D77: d) | E77: Narrow widths (up to 300mm wide) to:
D78: ii) | E78: Pump Station | F78: m | I78: Rate Only
B80: 4.1.16 | C80: 8.2.5 | D80: e) | E80: Curved narrow widths (up to 300mm wide) to:
D81: i) | E81: Reservoir | F81: m | I81: Rate Only
B83: 4.1.17 | D83: Box-out holes for pipes
C84: 8.2.6 | D84: Box-out holes, rectangular through concrete 200 to
D85: 500 mm thick: for pipework supplied and installed
D86: by the Mechanical Contractor :
D87: i) | E87: 280 x 280mm box-out for 80mm flanged steel pipe | F87: no | G87: 1.00
D89: ii) | E89: 370 x 370mm box-out for 150mm flanged steel pipe | F89: no | G89: 1.00
D91: iii) | E91: 420 x 420mm box-out for 200mm flanged steel pipe | F91: no | I91: Rate Only
B93: 4.1.18 | D93: REINFORCEMENT
C94: 8.3.1 | D94: Reinforcement, high tensile steel
D96: iii) | E96: Pump Station | F96: t | G96: 4.75
C98: 8.3.1 | D98: Reinforcement, mild steel
D100: iii) | E100: Pump Station | F100: t | G100: 1.50
C102: 8.3.2 | D102: High tensile welded mesh - Ref No 295 (Provisional)
D103: i) | E103: All structures | F103: m² | G103: 56.00
B105: 4.1.19 | C105: 8.4.4 | D105: Unformed surface finish
D107: iii) | E107: Pump Station | F107: m² | G107: 135.00
B110: AMOUNT CARRIED FORWARD
B111: AMOOUNT BROUGHT FORWARD
C113: PART | D113: PARTICULAR SPECIFICATION
C114: SPEC PB | D114: BUILDING WORK
C115: PB9 | D115: Brickwork
B116: 4.1.20 | C116: PB9.1.1 | D116: Walls (including brickforcing every fourth course)
D118: a) | E118: One brick walls (230 mm wide) | F118: m² | G118: 85.00
E119: Face bricks Type FBS external with 6 mm half
E120: round ruled joints and type NFP internal, the
E121: latter with joints raked for cement plaster
D123: b) | E123: Half brick walls (115 mm wide) | F123: m² | G123: 17.50
E124: NFP bricks with joints raked for cement plaster
E125: both sides
D127: Damp Proofing
D128: a) | E128: Single layer 375 micron "Gundle Brickgrip" plastic | F128: m | G128: 25.00
E129: waterproof sheeting under all walls at top of floor
E130: level, and underneath window cills:
B132: 4.1.21 | C132: PB9.1.3 | D132: Windows
D134: a) | E134: Standard aluminium windowPT69 at guard house | F134: no | G134: 1.00
D136: b) | E136: Standard aluminium windowPT99 at guard house | F136: no | G136: 1.00
D138: c) | E138: Standard aluminium window PT129 at guard house | F138: no | G138: 1.00
D140: d) | E140: Standard aluminium window PT159 at guard house | F140: no | G140: 1.00
D142: e) | E142: Standard aluminium window PT219 at guard house | F142: no | G142: 1.00
B144: 4.1.22 | C144: PB9.1.3 | D144: Doors and Frames
D145: a) | E145: Standard double sided FL&B 815x2 032mm solid meranti door and frame | F145: no | G145: 3.00
B147: 4.1.23 | D147: Roof and celing
D148: 0.6mm Chromadek IBR roof sheeting on wooden rafters and fixed to wooden purlins.
D149: a) | E149: Chromadek IBR Roof Sheeting | F149: m² | G149: 60.00
D151: b) | E151: Roof trussees | F151: Sum | G151: 1.00
D153: c) | E153: Ceiling | F153: m² | G153: 35.00
B155: 4.1.24 | C155: PB9.1.2 | D155: Plaster
D156: a) | E156: One layer cement plaster rendered 12 mm thick
E157: and finished smooth with steel trowel | F157: m² | G157: 45.00
B160: AMOUNT CARRIED FORWARD
B161: AMOOUNT BROUGHT FORWARD
B163: 4.1.25 | C163: PB9.1.2 | D163: Painting wall finishes
D164: a) | E164: One coat universal undercoat, Type 1 to SABS 681 | F164: m² | G164: 150.00
D166: b) | E166: Two coats of Plascon Double Velvet (Camel Hair) | F166: m² | G166: 150.00
B169: 4.1.26 | C169: PB9.1.3 | D169: Doors and Frames
D170: a) | E170: Steel and door frame, | F170: no | G170: 1.00
E171: 815 mm wide x 2 032 mm high
E172: thick complete with standard mild steel frame,
E173: 3 lever lockset, chrome plated handles and painted
D175: b) | E175: Mild steel and door frame, | F175: no | G175: 1.00
E176: 2400 mm wide x 3000 mm high
E177: thick complete with standard mild steel frame,
E178: 3 lever lockset, chrome plated handles and
E179: painted
B181: 4.1.27 | D181: Waterproofing of pump station roof
D182: "Acrylastic" as supplied by "Gundle" coatings, supplied | F182: m² | G182: 40.00
D183: and applied to manufacturer's specifications
B185: 4.1.28 | D185: Plumbing works | F185: Sum | G185: 1.00
B187: 4.1.29 | D187: Electrifical works | F187: Sum | G187: 1.00
B189: 4.1.30 | D189: Septic Tank | F189: Sum | G189: 1.00
B191: 4.2 | D191: Pump Sets
B193: 4.2.1 | D193: Supply, delivery, installation and commissioning of booster pump
D194: set with capacity of 65m³/h and duty head of 93.46m
D195: (The rate to include removal of existing pump set and
D196: storage onsite) | F196: No | G196: 2.00
B198: 4.2.2 | D198: Pipework | F198: Sum | G198: 1.00
B200: 4.2.3 | D200: Upgrading of existing soft starter MCC panel to suit
D201: the new pump set | F201: Sum | G201: 1.00
B203: 4.2.4 | D203: Supply, delivery and installation of 150mmØ electromagnetic
D204: flow meter | F204: No | G204: 2.00
B206: 4.3 | D206: Steel Tanks
B207: 4.3.1 | D207: Resealing of existing steel tanks
D208: (Dismantling of the tank, Re-assembling of the tanks with new
D209: rubber seals, sealants, bolt and nuts including replacement of
D210: rusted steel panels)
D212: i) | E212: 1 424kl | F212: Prov. Sum | G212: 1.00 | H212: =863000*1.2 -> 1,035,600.00 | I212: =H212*G212 -> R1,035,600.00 | N212: =H212-450000 -> R585,600.00
D214: ii) | E214: 565 kl | F214: Prov. Sum | G214: 1.00 | H214: 450,000.00 | I214: =H214*G214 -> R450,000.00 | N214: =H214-350000 -> 100,000.00
D216: iii) | E216: Contractor's handling fee for steel tanks | F216: % | G216: =I212+I214 -> 1,485,600.00
B218: 4.3.2 | D218: Steel tank base slab
D220: i) | E220: Demolition of existing base slab | F220: Sum | G220: 1.00 | N220: 30000
D222: ii) | E222: Ground preparation | F222: m² | G222: 180.00
B225: AMOUNT CARRIED FORWARD
B226: AMOOUNT BROUGHT FORWARD
D228: iii) | E228: Formwork | F228: m² | G228: 25.00
D230: iv) | E230: Strength concrete - class 30MPa/19mm | F230: m³ | G230: 52.50
D232: v) | E232: Reinforcement, high tensile steel | F232: t | G232: 5.00
D234: vi) | E234: Unformed surface finish | F234: m² | G234: 205.00
B236: 4.4 | D236: Fencing
D238: i) | E238: Removal of existing barbwire fence and storing on-site | F238: m | G238: 160.00
D240: ii) | E240: Removal of existing concrete palisade and re-erection
E241: (The rate to include new bolts and nuts) | F241: m | G241: 115.00
D243: iii) | E243: Relocation of existing gate | F243: No | G243: 1.00
D245: iv) | E245: Deliver and erect 2.4m high concrete palisade fence complete
E246: as per manufacturers specifications | F246: m | G246: 321.00
D248: v) | E248: Gate - Install 6m sliding vehicle gate complete | F248: No | G248: 1.00
B250: 4.5 | D250: Mastlight
D252: i) | E252: Construction of mastlight base, supply and erection of 12m high
E253: mastlight with 4 100w floodlights and electrification | F253: Sum | G253: 1.00 | N253: 200000
B255: 4.6 | D255: Pump Station Crane
D257: i) | E257: 254x146x37 I-beam | F257: m | G257: 6.00
D259: ii) | E259: 1.5T Electric chain hoist complete with trolley to suit to beam | F259: Sum | G259: 1.00
B275: TOTAL SCHEDULE 4 CARRIED FORWARD TO SUMMARY | N275: =SUM(N1:N261) -> 917500

Sheet Schedule 5 - Mbangwane Bulkline
B1: SCHEDULE 5 : MBANGWANE BULKLINE
B2: ITEM | C2: REF | D2: DESCRIPTION | E2: UNIT | F2: QUANT | G2: RATE | H2: AMOUNT
B3: NO.
B4: 5.1 | C4: SANS 1200DB | D4: SITE CLEARANCE
B5: 5.1.1 | C5: 8.3.1 LI | D5: a) Clear vegetation and tress of girth up to 1 m, stockpile and reinstate topsoil (150mm deep) along route of pipeline | E5: m | F5: 1,670.00
B7: 5.1.2 | C7: 8.3.1 LI | D7: b) Clear trees of girth over 1,0m and designated obstacles | E7: No. | F7: 8.00
B9: 5.2 | C9: SANS 1200DB | D9: Earthworks: Pipe Trenches
C10: 8.3.2 | D10: EXCAVATION
B11: 5.2.1 | C11: 8.3.2 a) | D11: a) Excavate in all materials for trenches for 315ND pipes and smaller. Rates to include backfill, compact, and dispose of surplus material
D12: Over Up to and including
D14: 1) 0,00 1,50m | E14: m | F14: 450.00
D16: 2) 1,50 2,00m | E16: m | F16: 1,220.00
D18: 3) 2,00 2,50m | E18: m
B20: 5.2.2 | C20: 8.3.2 | D20: b) Extra over Item 2.2.1 above for:
D22: 1) Intermediate excavation | E22: m3 | F22: =762+300 -> 1,062.00 | N22: =K22 -> 0
D24: 2) Hard rock excavation | E24: m3 | F24: =1220+300 -> 1,520.00 | N24: =K24 -> 0
B26: 5.2.3 | C26: 8.3.2 | D26: c) Excavate and dispose of unsuitable material from trench bottom (Prov) | E26: m3 | F26: 153.00
B28: 5.2.4 | C28: 8.3.3 | D28: Excavation ancillaries (Prov)
B30: 2.4.1 | C30: 8.3.3.1 | D30: Make up deficiency in backfill material
D32: a) From other necessary excavations on site | E32: m³ | F32: 244.00
D34: b) by importation from designated borrow pits | E34: m³ | F34: 826.00 | N34: =K34 -> 0
D36: c) by importation from commercial or off-site sources selected by the contractor | E36: m³ | F36: =250+50 -> 300.00 | N36: =K36 -> 0
B38: 5.3 | C38: SANS 1200LB | D38: BEDDING
B39: 5.3.1 | C39: 8.2.1 | D39: Provision of bedding from trench excavation:
D41: a) Selected granular material | E41: m3 | F41: 75.00
D43: b) Selected fill material | E43: m3 | F43: 138.00
B45: 5.3.2 | C45: 8.2.2.2 | D45: Provision from approved borrow pits including all costs for additional handling and transport.
D46: a) Selected granular material (Prov) | E46: m3 | F46: 77.50
D48: b) Selected fill material (Prov) | E48: m3 | F48: 160.00
B50: 5.3.3 | C50: 8.2.2.3 | D50: Provision from commercial or off-site sources, where ordered by the Engineer (Prov)
B51: AMOUNT CARRIED FORWARD
B52: AMOUNT BROUGHT FORWARD
D53: a) Selected granular material | E53: m3 | F53: 77.50
D55: b) Selected fill material | E55: m3 | F55: 160.00
D57: c) 19mm crushed stone | E57: m3 | F57: 38.00
B59: 5.3.4 | C59: SANS 1200DB 8.3.3.4 | D59: Overhaul
D60: a) Short haul over 0,5km up to 1,0km (Prov.) | E60: m3 | F60: 230.00
D62: b) Truck haul over 1,0km (Prov.) | E62: m3.km | F62: =(F24+F34+F46+F48)*6 -> 15,501.00
B64: 5.4 | C64: SANS 1200L | D64: Medium Pressure Pipelines
D65: uPVC PIPES
B66: 5.4.1 | C66: 8.2.1 LI | D66: Supply, handle, lay, bed, joint, test and disinfect uPVC Class "12" pipe with spigot and socket ends to SABS 966, Part 2 (1988)
D67: a) 250mmØ class 12 (u-PVC) | E67: m | F67: 1,670.00
B69: 5.4.2 | C69: 8.2.2 | D69: Extra over Item D4.1 for the Supplying, Laying, and Bedding of Specials Complete with Couplings including jointing, cutting of pipes to length where required, testing and disinfecting.
D70: Specials and Fittings in uPVC
B72: 5.4.2.1 | D72: Bends:
D74: a) 45° | E74: No | F74: 2.00
D76: b) 22.5° | E76: No | F76: 3.00
D78: c) 11.25° | E78: No | F78: 4.00
D80: Specials and Fittings in SG Iron
B82: 5.4.2.2 | D82: Reducers (for uPVC pipe)
D84: a) 315 - 250mmØ | E84: No | H84: Rate Only
D86: b) 200 - 160mmØ | E86: No | H86: Rate Only
D88: Equal Tees (Cast iron)
D90: a) 315mmØ | E90: No | H90: Rate Only
B92: 5.4.2.3 | D92: Reducing Tees (for uPVC pipe)
D94: a) 315 x 200mm diameter | E94: No | H94: Rate Only
B96: 5.4.2.4 | D96: Flange Adaptor (for uPVC pipes)
D98: a) 315mm diameter | E98: No | H98: Rate Only
D100: b) 250mm diameter | E100: No | F100: 7.00
B102: AMOUNT CARRIED FORWARD
B103: AMOUNT BROUGHT FORWARD
B104: 5.4.3 | D104: Valves
D106: a) PN16 250 mm ND flanged resilient seal gate valve ( Drawing No. CON/DE-02) | E106: No | F106: 3.00
D108: b) Valve key for opening isolating valves | E108: No | H108: Rate Only
B110: 5.4.4 | D110: Supply and install the following material complete as per drawing:
D112: a) 80mm Airvalve on 250mm diameter | E112: No | F112: 5.00
B114: 5.4.5 | D114: Valve Chambers
D115: Supply all material labour and equipment for the construction
D116: of valve chambers as per drawings:
D118: a) Valve chamber | E118: No | F118: 5.00
D120: b) Connection chamber | E120: No | F120: 1.00
B122: 5.4.6 | C122: SABS 1200L 8.2.11 | D122: Construct anchor/thrust blocks to detail on D for tees, 90° bends and end caps:
D123: a) 315mmØ | E123: No | H123: Rate Only
D125: b) 250mmØ | E125: No | H125: Rate Only
B127: 5.5 | D127: ROAD D2950 CROSSING
D128: Clearance, earthworks, beddings and medium pressure pipes are
D129: covered under item no. 3.1, 3,2, 3,3 3.4.and 3.5
B130: 5.5.1 | D130: a) Traffic accomodation | E130: Sum | F130: 1.00
B132: 5.5.2 | D132: b) Reinstatement of the road pavement structure:
D134: i) 150mm G7 Lower selected layer,93% ModAASHTO | E134: m³ | F134: 10.00
D136: ii) 150mm G6 Upper selected layer, 95% ModAASHTO | E136: m³ | F136: 10.00
D138: iii) 150mm C4 Subbase layer, 98% ModAASHTO | E138: m³ | F138: 10.00
D140: iv) 150mm G2 base layer | E140: m³ | F140: 10.00
D142: v) 30mm Medium Continoiusly Graded Asphalt including
D143: prime @ 1l/m² | E143: m³ | F143: =10*3 -> 30.00
B145: 5.6 | D145: Steel pipes
D146: Steel short pieces (SABS 719, Grade B, 4,5 mm wall
D147: thickness), both end flanged, internally lined and
D148: externally coated with carboline 891, minimum
D149: thickness 250 microns as per drawing (CON/DET-01)
B151: 5.6.1 | D151: 200-250mmØ | E151: Sum | F151: 1.00
D153: PN16 200 mm ND flanged electromagentic flow meter
D154: (Proline Promag 50P, 53P compact or approved
B155: 5.6.2 | D155: similar) (Item No. 7 on Drawing No. CON/DET-02) | E155: No | F155: 2.00
B157: AMOUNT CARRIED FORWARD
B158: AMOUNT BROUGHT FORWARD
B160: 5.7 | D160: Pipe marker posts as shown on Drawing No. STD/PM01 | E160: No | F160: 9.00
B162: 5.8 | D162: Removal of unathorized connections on the existing DN250 uPVC
D163: pipeline and repairs as and when required | E163: Prov. Sum | F163: 1.00 | G163: 250,000.00 | H163: =G163*F163 -> R250,000.00
D164: (ordered by the Engineer)
B194: TOTAL SCHEDULE 5 CARRIED FORWARD TO SUMMARY

Sheet Schedule 6 - Reticulation
B1: SCHEDULE 6 : WATER RETICULATION
B2: ITEM | C2: REF | D2: DESCRIPTION | E2: UNIT | F2: QUANT | G2: RATE | H2: AMOUNT
B3: NO.
B4: 6.1 | C4: SANS 1200DB | D4: SITE CLEARANCE
B5: 6.1.1 | C5: 8.3.1 LI | D5: a) Clear vegetation and tress of girth up to 1 m, stockpile and reinstate topsoil (150mm deep) along route of pipeline | E5: m | F5: 27995
B7: 6.1.2 | C7: 8.3.1 LI | D7: b) Clear trees of girth over 1,0m and designated obstacles | E7: No. | F7: 20
B9: 6.2 | C9: SANS 1200DB | D9: Earthworks: Pipe Trenches
C10: 8.3.2 | D10: EXCAVATION
B11: 6.2.1 | C11: 8.3.2 a) | D11: a) Excavate in all materials for trenches for 200ND pipes and smaller. Rates to include backfill, compact, and dispose of surplus material
D12: Over Up to and including
D14: 1) 0,00 1,50m | E14: m | F14: 27000
D16: 2) 1,50 2,00m | E16: m | F16: 995
D18: 3) 2,00 2,50m | E18: m
D20: 4) 2,50 3,00m | E20: m
B22: 6.2.2 | C22: 8.3.2 | D22: b) Extra over Item 2.2.1 above for:
D24: 1) Intermediate excavation | E24: m3 | F24: 5590
D26: 2) Hard rock excavation | E26: m3 | F26: 6998
B28: 6.2.3 | C28: 8.3.2 | D28: c) Excavate and dispose of unsuitable material from trench bottom (Prov) | E28: m3 | F28: 1895
C30: 8.3.3 | D30: Excavation ancillaries (Prov)
B32: 6.2.4 | C32: 8.3.3.1 | D32: Make up deficiency in backfill material
D34: a) From other necessary excavations on site | E34: m³ | F34: =F26*0.5 -> 3499
D36: b) by importation from designated borrow pits | E36: m³ | F36: =F26*0.2 -> 1400
D38: c) by importation from commercial or off-site sources selected by the contractor | E38: m³ | F38: =F26*0.3 -> 2099
B40: 6.3 | C40: SANS 1200LB | D40: BEDDING
B41: 6.3.1 | C41: 8.2.1 | D41: Provision of bedding from trench excavation:
D43: a) Selected granular material | E43: m3 | F43: =2800*0.5 -> 1400
D45: b) Selected fill material | E45: m3 | F45: =8400*0.5 -> 4200
B47: 6.3.2 | C47: 8.2.2.2 | D47: Provision from approved borrow pits including all costs for additional handling and transport.
D49: a) Selected granular material (Prov) | E49: m3 | F49: =2800*0.3 -> 840
B51: AMOUNT CARRIED FORWARD
B52: AMOOUNT BROUGHT FORWARD
D53: b) Selected fill material (Prov) | E53: m3 | F53: =8400*0.3 -> 2520
B55: 6.3.3 | C55: 8.2.2.3 | D55: Provision from commercial or off-site sources, where ordered by the Engineer (Prov)
D56: a) Selected granular material | E56: m3 | F56: =2800*0.2 -> 560
D58: b) Selected fill material | E58: m3 | F58: =8400*0.2 -> 1680
D60: c) 19mm crushed stone | E60: m3 | F60: 400
B62: 6.3.4 | C62: SANS 1200DB 8.3.3.4 | D62: Overhaul
D63: a) Short haul over 0,5km up to 1,0km (Prov.) | E63: m3 | F63: 200
D65: b) Truck haul over 1,0km (Prov.) | E65: m3.km | F65: =(F49+F53+F36+F26)*6 -> 70546
B67: 6.4 | C67: SANS 1200L | D67: Medium Pressure Pipelines
D68: uPVC PIPES
B69: 6.4.1 | C69: 8.2.1 LI | D69: Supply, handle, lay, bed, joint, test and disinfect uPVC pipe with spigot and socket ends to SABS 966, Part 2 (1988)
D71: a) 63mm diameter class 9 (u-PVC) | E71: m | F71: 1437
D73: b) 75mm diameter class 9 (u-PVC) | E73: m | F73: 6147
D75: c) 75mm diameter class 12 (u-PVC) | E75: m | F75: 12000
D77: d) 110mm diameter class 12 (u-PVC) | E77: m | F77: 5944
D79: e) 160mm diameter class 12 (u-PVC) | E79: m | F79: 2406
B81: 6.4.2 | C81: 8.2.2 | D81: Extra over Item D4.1 for the Supplying, Laying, and Bedding of Specials Complete with Couplings including jointing, cutting of pipes to length where required, testing and disinfecting.
D82: Specials and Fittings in uPVC
B83: 6.4.2.1 | D83: 90° Bends:
D85: a) 63 mm diameter | E85: No. | F85: 4
D87: b) 75 mm diameter | E87: No. | F87: 35
D89: c) 110mm diameter | E89: No. | F89: 9
D91: d) 160mm diameter | E91: No. | F91: 7
B93: 6.4.2.2 | D93: 45° Bends
D94: a) 63 mm diameter | E94: No. | H94: Rate Only
D96: b) 75 mm diameter | E96: No. | F96: 15
D98: c) 110mm diameter | E98: No. | F98: 9
D100: d) 160mm diameter | E100: No. | F100: 0 | H100: Rate Only
B102: AMOUNT CARRIED FORWARD
B103: AMOOUNT BROUGHT FORWARD
B105: 6.4.2.3 | D105: 22½° Bends:
D106: a) 63 mm diameter | E106: No. | F106: 2 | H106: Rate Only
D108: b) 75 mm diameter | E108: No. | F108: 38
D110: c) 110mm diameter | E110: No. | F110: 14
D112: d) 160mm diameter | E112: No. | F112: 5
B114: 6.4.2.4 | D114: 11¼° Bends:
D115: a) 63 mm diameter | E115: No. | F115: 9
D117: b) 75 mm diameter | E117: No. | F117: 68
D119: c) 110mm diameter | E119: No. | F119: 25
D121: d) 160mm diameter | E121: No. | F121: 12
D123: Specials and Fittings in SG Iron
B125: 6.4.2.5 | D125: Reducers (for uPVC pipe)
D126: a) 200 x 160mm diameter | E126: No. | H126: Rate Only
D128: b) 160 x 110mm diameter | E128: No. | F128: 4
D130: c) 110 x 75mm diameter | E130: No. | F130: 9
D132: d) 75 x 63mm diameter | E132: No. | F132: 6
B134: 6.4.2.6 | D134: Reducing Tees (for uPVC pipe)
D135: a) 200 x 160mm diameter | E135: No. | H135: Rate Only
D137: b) 160 x 63mm diameter | E137: No. | F137: 4
D139: c) 110 x 75mm diameter | E139: No. | F139: 9
D141: d) 75 x 63mm diameter | E141: No. | F141: 6
D143: e) 63 x 50mm diameter | E143: No. | H143: Rate Only
B145: 6.4.2.7 | D145: Equal Tees (for uPVC pipe)
D146: a) 200mm diameter | E146: No. | H146: Rate Only
D148: b) 160mm diameter | E148: No. | H148: Rate Only
D150: c) 110mm diameter | E150: No. | F150: 5
D152: d) 75mm diameter | E152: No. | F152: 54
D154: e) 63mm diameter | E154: No. | F154: 4
B156: 6.4.2.8 | D156: Socketed Hydrant tees (for uPVC pipes) as per detail on drawing (if flanged, the branch should be flanged to SABS, 1123 Table 1600/3, include for "Denso-wrapping" bolted connections in accordance with PSL.5.3 and 5.4)
B158: AMOUNT CARRIED FORWARD
B159: AMOOUNT BROUGHT FORWARD
D160: a) 160 x 80mm diameter | E160: No. | F160: 1
D162: b) 110 x 80mm diameter | E162: No. | F162: 2
D164: c) 75 x 80mm diameter | E164: No. | F164: 2
B166: 6.4.2.9 | D166: End Caps (for uPVC pipes):
D167: a) 63 mm diameter | E167: No. | F167: 15
D169: b) 75 mm diameter | E169: No. | F169: 49
D171: c) 110mm diameter | E171: No. | F171: 2
D173: d) 160mm diameter | E173: No. | F173: 2
B175: 6.4.2.10 | D175: Flange Adaptor (for uPVC pipes)
D176: a) 160mm diameter | E176: No. | H176: Rate Only
D178: b) 110mm diameter | E178: No. | H178: Rate Only
D180: c) 75mm diameter | E180: No. | H180: Rate Only
D182: d) 63mm diamter | E182: No. | H182: Rate Only
C184: 8.2.3 | D184: Extra over Item D4.1 for the Supplying, Fixing, and Bedding of Valves
B186: 6.4.3 | C186: SANS 1200L 8.2.3 | D186: Supply and Install CI RSV gate valves (socketed ends for uPVC pipe) to SABS 1123 Table 1600/3 and a cap top for key operation for the following diameters (include 15 Mpa concrete anchor block):
D187: a) 63mm diameter | E187: No. | F187: 3
D189: b) 75mm diameter | E189: No. | F189: 10
D191: c) 110mm diameter | E191: No. | F191: 8
D193: d) 160mm diameter | E193: No. | F193: 1
D195: e) 200mm diameter | E195: No. | H195: Rate Only
D197: Hydrants
B198: 6.4.4 | D198: a) Supply and install complete standard fire hydrant installation complete to detail, Installation to include all fittings. Hydrant Tee and Chamber measured separately. | E198: No. | F198: 4
B200: 6.4.5 | C200: 8.2.11 | D200: Anchor/Thrust Blocks and Pedestals
B202: 6.4.5.1 | C202: SABS 1200L 8.2.11 | D202: Construct anchor/thrust blocks to detail on D for tees, 90° bends and end caps:
D203: a) 63mm diameter | E203: No. | F203: 5
D205: b) 75mm diameter | E205: No. | F205: 25
D207: c) 110mm diameter | E207: No. | F207: 15
D209: d) 160mm diameter | E209: No. | F209: 15
B212: AMOUNT CARRIED FORWARD
B213: AMOOUNT BROUGHT FORWARD
B214: 6.4.5.2 | D214: As for Items D4.5.1 above but for lesser bends:
D215: a) 63mm diameter | E215: No. | F215: 2
D217: b) 75mm diameter | E217: No. | F217: 5
D219: c) 110mm diameter | E219: No. | F219: 5
D221: d) 160mm diameter
B223: 6.4.5.3 | D223: As for Items D4.5.1 above but for reducers:
D224: a) 63mm diameter | E224: No. | H224: Rate Only
D226: b) 75mm diameter | E226: No. | F226: 5
D228: c) 110mm diameter | E228: No. | F228: 10
D230: d) 160mm diameter | E230: No. | F230: 10
C232: 8.2.13 | D232: Valve Chambers
B233: 6.4.6 | D233: Construct valve chamber complete to detail on Dwg No. STD/VLVCH01 including manhole cover and locking bar. Allow for painting above ground section of chamber with two coats of yellow road marking paint. | E233: No. | F233: 5
C235: 8.2.13 | D235: Meter Chambers
B236: 6.4.7 | D236: Construct meter chamber complete to detail on Dwg No. STD/MTRCH01 including manhole cover and locking bar. Allow for painting above ground section of chamber with two coats of yellow road marking paint. | E236: No. | F236: 3
B238: 6.4.8 | C238: 8.2.8 | D238: Markings or Marker Posts | E238: No. | F238: 8
B240: 6.5 | C240: SANS 1200LF | D240: ERF CONNECTIONS AND PIPEWORK
B241: 6.5.1 | C241: 8.2.1 | D241: Supply and Install ERF Connections Complete with all saddles and clamps, HDPE Connection Pipes, Reducers, Tees, Couplings and all sundries including for excavation and backfill. Allow for Double ERF Connections that cross the road. | E241: No. | F241: 67
B243: 6.5.2 | C243: 8.2.1 | D243: Supply and Install ERF Connections Complete with all saddles and clamps, HDPE Connection Pipes, Reducers, Tees, Couplings and all sundries including for excavation and backfill. Allow for Single ERF Connections that cross the road. | E243: No. | F243: 45
B245: 6.5.3 | C245: 8.2.1 | D245: Supply and Install ERF Connections Complete with all saddles and clamps, HDPE Connection Pipes, Reducers, Tees, Couplings and all sundries including for excavation and backfill. Allow for Double ERF Connections on near side from the road. | E245: No. | F245: 215
B247: 6.5.4 | C247: 8.2.1 | D247: Supply and Install ERF Connections Complete with all saddles and clamps, HDPE Connection Pipes, Reducers, Tees, Couplings and all sundries including for excavation and backfill. Allow for Single ERF Connections on near side from the road.. | E247: No. | F247: 80
B249: 6.5.5 | C249: 8.2.4 | D249: Supply and Install Meters Complete with Couplings Including Yard Tap
B251: AMOUNT CARRIED FORWARD | H251: =SUM(H213:H250) -> 0
B252: AMOOUNT BROUGHT FORWARD | H252: =H251 -> 0
B254: 6.5.5 | C254: 8.2.4 | D254: Supply and Install Meters Complete with Couplings Including Yard Tap
D256: Supply and install Elster Kent V130 water meter complete with ball valve, meter box, with Consumer Valve Box complete as per Detail on Drawing No. for Ø15mm size house connection pipe complete with all fittings and sundries including complete yard tap located a minimum of 1.0m and maximum of 5m inside property boundary to detail on Dwg No. STD/ERFCON01 | E256: No. | F256: 882
B258: 6.5.6 | C258: 8.2.8 | D258: Markings or Marker Posts | E258: No. | F258: 882
B260: 6.6 | D260: Supply and Install PRV valves (socketed ends for uPVC pipe) to SABS 1123 Table 1600/3 and a cap top for key operation for the following diameters (include 15 Mpa concrete anchor block) as per drawing:
D262: i) DN100 | E262: No | F262: 2
B281: TOTAL SCHEDULE 6 CARRIED FORWARD TO SUMMARY

Sheet Summary
B1: Schedule | C1: Description | F1: Amount
B2: 1 | C2: Preliminary and Generals
B3: 2 | C3: Masibekela Raw Water Pump Station and Water Treatment Works
B4: 3 | C4: Hoyi Bulkline
B5: 4 | C5: Mbangwane Booster Pump Station
B6: 5 | C6: Mbangwane Bulkline
B7: 6 | C7: Mbangwane Water Reticulation Network
B8: Sub-Total
B9: 10% Contingencies
B10: 5% Contract Price Adjustment
B11: Sub-Total
B12: 15% VAT
B13: Total Tender Offer
B18: Name of Services Provider: | C18: _______________________________________________ | E18: Name of Authorized Representative: | F18: ____________________________________________
B24: Signature: | C24: _______________________________________________ | E24: Date: | F24: ____________________________________________

Sheet Sheet2 (hidden)
